{"text_format":"1","workbook":"xlsx","n_sheets":2,"sheets":["Sch. Spec. ","New item list 2018 (2)"],"not_rendered":{"charts":0,"images":1,"macros":1,"external_links":1,"defined_names":8,"comments":0,"pivot_tables":0},"unopened":[],"bounds":{"document_bytes":16777216,"sheet_cells":100000,"rows_first":2000,"rows_last":500,"rows_between":2000,"halvings":0,"cell_chars":16384,"cell_head_chars":4096},"cells_cut":0,"cells_raw":0,"read":"whole","date_system":"1900"}

{"sheet":"Sch. Spec. ","index":0,"n_rows":35,"n_cols":7,"rows_kept":35,"cut":false,"hidden":false,"merged":[[14,0,15,6],[7,4,7,6],[8,4,8,6],[13,4,13,6],[12,4,12,6],[9,4,9,6],[10,4,10,6],[11,4,11,6]]}
[]
[]
[]
[]
[]
[null,null,null,"Your Discount:",0.35]
["BILL TO:",null,null,"SHIP TO:"]
[]
[]
[]
[]
[]
["PURCHASE ORDER # __________________"]
["** Up to 45 days for fullfillment from PO Date-check with rep for verification**"]
["Please Note:  Due to the constantly changing availability of certain brands/manufacturers, SSI reserves the right to substitute like quality products from available brands/mfgs, at time of order.  As such, we are not able to provide specific brands/mfg. as part of this list.  "]
[]
["TOTAL AMOUNT OF ORDER:",null,null,null,null,null,{"$f":"SUM(G19:G35)","v":0}]
["QTY ORD.","UNIT","STOCK #","DESCRIPTION","LIST PRICE","YOUR PRICE","TOTAL PRICE"]
[null,"BX","PR3PL","Mask - 3ply, non-medical grade, FDA Approved; 50/Box",59.99,{"$f":"IF(E19=\"\",\"\",ROUND(E19*(1-$E$6),2))","v":38.99},{"$f":"IF(F19=\"\",0,A19*F19)","v":0}]
[null,"BX","PRKN95KN95","Mask - KN95, FDA Approved; 20/Box",119.99,{"$f":"IF(E20=\"\",\"\",ROUND(E20*(1-$E$6),2))","v":77.989999999999995},0]
[null,"EA","PRFS","Face Shield - Has Anti-fog Treatement, FDA Approved",4.99,3.24,0]
[null,"BX",2039317,"Fabric Face Mask - 100% Thick cotton canvas. Black Mask, 11 trim colors, assorted. Made in USA. 20/Box",239.8,155.87,0]
[null,"PK","PRRMB","Fabric Face Mask - Antimicrobial. Washable up to 30x without degradation. Black. 5/Pk",9.99,6.49,0]
[null,"BX","PRGLN","Nitrile Gloves - S, M, L, XL.  Latex & Powder Free. 3mil thickness 100/Box",27.99,18.190000000000001,0]
[null,"PK","PRSPG3","Disposable Gown - Level 3, FDA Approved. 10/Pack",149.99,97.49,0]
[null,"EA","PRMPG3","Isolated Protective Medical Coverall - Level 3, FDA Approved.",49.99,32.49,0]
[null,"EA","1648933E","No Touch Thermometers - FDA Approved. Requires 2 AA batteries, not included.       *** Sale price is $99",null,99,0]
[null,"EA","PCM-00017","Hand Sanitizer 8 oz No Pump - 70% Alcohol. Gel. Includes Pump. FDA Approved",4.59,2.98,0]
[null,"CS","PRIHS","Hand Sanitizer 16.9oz w/ Pump - 75% Ethyl alcohol, gel. Includes Pump. FDA Approved. 16/Case",144.99,94.24,0]
[null,"CS","PRIHS1L","Hand Sanitizer 1L - 33.8oz w/ Pum - 75% Ethyl alcohol, gel. Includes Pump. FDA Approved. 16/Case",269.99,175.49,0]
[null,"CS","1GAL","Hand Sanitizer 1G w/ Pump - 70% Alcohol. Gel with Aloe. Includes Pump. FDA Approved. 6/Case",289.99,188.49,0]
[null,"EA","5GAL","Hand Sanitizer 5G w/ Pump - 70% Alcohol. Gel with Aloe. Includes Pump. FDA Approved.",229.99,149.49,0]
[null,"EA","MGS-AW1","Antibac Wet Wipes - 75% Alcohol wet wipe 50pcs (with plastic lid)             ",8.99,5.84,0]
[null,"EA","F‐1408‐S‐T‐S","Electronic No Touch Floor Stand Sanitizer Dispenser w/ Drip Tray - Refillable cartridge (1200ml) included. Does not include sanitizer. ",179.99,116.99,0]
[null,"EA","F‐1406-S","Electronic No Touch Wall Dispenser w/ Drip Tray - Refillable cartridge (1000ml) included. Does not include sanitizer. ",79.989999999999995,51.99,0]

{"sheet":"New item list 2018 (2)","index":1,"n_rows":661,"n_cols":5,"rows_kept":661,"cut":false,"hidden":true,"merged":[]}
["ITEMS","DESCRIPTION","HEADER","2018 LP","STATUS"]
["1473686","Student Planner Weekly 7x11","ACADEMIC PLANNERS, CALENDARS & RECORD BOOKS",3.19,"ACTIVE"]
["1473687","Student Assignment Book Daily 7x11","ACADEMIC PLANNERS, CALENDARS & RECORD BOOKS",4.49,"ACTIVE"]
["1473705","Lesson Plan Bk 8 Sub 9.25x12.25 Sgl Sht","ACADEMIC PLANNERS, CALENDARS & RECORD BOOKS",4.99,"ACTIVE"]
["1473702","Lesson Plan Bk 6 Sub 9.25x12.25 Sgl Sht","ACADEMIC PLANNERS, CALENDARS & RECORD BOOKS",4.99,"ACTIVE"]
["1473653","Class Recd Bk 9/10 Wk 8 Sub 8-1/2x11","ACADEMIC PLANNERS, CALENDARS & RECORD BOOKS",5.99,"ACTIVE"]
["1473676","Class Recd Bk 9/10 Wk 8 Sub 9-1/4x12-1/4","ACADEMIC PLANNERS, CALENDARS & RECORD BOOKS",6.99,"ACTIVE"]
["1473683","Plan Bk 9/10 Week 7 Subject 8-1/2x11","ACADEMIC PLANNERS, CALENDARS & RECORD BOOKS",6.19,"ACTIVE"]
["1481885","Class Recd Bk 9/10 Wk Bradley 8-1/2x11","ACADEMIC PLANNERS, CALENDARS & RECORD BOOKS",4.49,"ACTIVE"]
["1473694","Lesson Plan Bk 8 Sub 9.25x12.25 Dup Sht","ACADEMIC PLANNERS, CALENDARS & RECORD BOOKS",7.49,"ACTIVE"]
["1473659","Class Recd Bk 6/7 Wk 8 Sub 8-1/2x11","ACADEMIC PLANNERS, CALENDARS & RECORD BOOKS",5.69,"ACTIVE"]
["1473701","Lesson Plan Bk 6 Sub 9.25x12.25 Dup Sht","ACADEMIC PLANNERS, CALENDARS & RECORD BOOKS",7.49,"ACTIVE"]
["205350","E-Z Grader Original","ACADEMIC PLANNERS, CALENDARS & RECORD BOOKS",10.69,"ACTIVE"]
["076477","Award Pencils Star Student Pk/12","AWARD PENCILS",3.69,"ACTIVE"]
["224817","Award Pencils Caught Doing Good Pk/12","AWARD PENCILS",3.69,"ACTIVE"]
["076492","Award Pencils Do Your Best On Test Pk/12","AWARD PENCILS",3.69,"ACTIVE"]
["224925","Award Pencils Multiplication Pk/12","AWARD PENCILS",3.69,"ACTIVE"]
["357773","Award Pencils Attendance Glitz Pk/12","AWARD PENCILS",3.69,"ACTIVE"]
["069638","Award Pencils Teachers Pk/12","AWARD PENCILS",3.69,"ACTIVE"]
["237500","Award Pencils Candy Canes Pk/12","AWARD PENCILS",3.69,"ACTIVE"]
["224811","Award Pencils Super Reader Pk/12","AWARD PENCILS",3.69,"ACTIVE"]
["224721","Award Pencil Happy Birthday Pk/12","AWARDS/INCENTIVES",2.97,"ACTIVE"]
["076480","Award Pencil 100th School Day Pk/12","AWARDS/INCENTIVES",3.69,"ACTIVE"]
["237641","Award Pencil 3rd Graders #1 Pk/12","AWARDS/INCENTIVES",3.69,"ACTIVE"]
["237638","Award Pencil 2nd Graders #1 Pk/12","AWARDS/INCENTIVES",3.69,"ACTIVE"]
["237644","Award Pencil 4th Graders #1 Pk/12","AWARDS/INCENTIVES",3.69,"ACTIVE"]
["227067","Award Pencil Happy Valentine Pk/12","AWARDS/INCENTIVES",3.69,"ACTIVE"]
["237635","Award Pencil 1st Graders #1 Pk/12","AWARDS/INCENTIVES",3.69,"ACTIVE"]
["357181","Ribbons Adhes. Smiling Happy Bday Pk/36","AWARDS/INCENTIVES",6.79,"ACTIVE"]
["281606","Award Pencil Stars & Stripes Pk/12","AWARDS/INCENTIVES",3.69,"ACTIVE"]
["081000","Award Pencil Halloween Pk/12","AWARDS/INCENTIVES",3.69,"ACTIVE"]
["241548","Award Happy Birthday Pk/30","AWARDS/INCENTIVES",4.29,"ACTIVE"]
["081004","Award Pencil Shamrock Glitz Pk/12","AWARDS/INCENTIVES",3.69,"ACTIVE"]
["387253","Happy B-Day Bkmark 15 Ea/2 Designs Pk/30","AWARDS/INCENTIVES",5.09,"ACTIVE"]
["281603","Award Pencil Snowflakes Pk/12","AWARDS/INCENTIVES",3.69,"ACTIVE"]
["227058","Award Pencil Student Of The Week Pk/12","AWARDS/INCENTIVES",3.69,"ACTIVE"]
["227043","Award Pencil Merry Christmas Tchr Pk/12","AWARDS/INCENTIVES",3.69,"ACTIVE"]
["069635","Award Pencil Christmas Pk/12","AWARDS/INCENTIVES",3.69,"ACTIVE"]
["007664","Shuttlecock White","BADMINTON",10.89,"ACTIVE"]
["1293609","School Smart Playground Ball 8.5\" Red","BALLS - TEACHING & PLAY",7.59,"ACTIVE"]
["1293615","School Smart Playground Ball St/6 8.5\" Asst.","BALLS - TEACHING & PLAY",35.99,"ACTIVE"]
["081474","RhinoSkin Dodge Balls 6\" Asst St/6","BALLS - TEACHING & PLAY",91.19,"ACTIVE"]
["1293610","School Smart Playground Ball 8.5'' Yllw","BALLS - TEACHING & PLAY",7.59,"ACTIVE"]
["016220","SportimeMax FlexMatrx PG Balls 8.5\" St/6","BALLS - TEACHING & PLAY",50.69,"ACTIVE"]
["016085","Sportime Max Basketball, Junior 27\" St/6","BASKETBALL",89.99,"ACTIVE"]
["471299","Ball Basketball Elementary","BASKETBALL",13.09,"ACTIVE"]
["016094","Sportime Max Basketball, Woman;s 28.5\" St/6","BASKETBALL",89.99,"ACTIVE"]
["1426339","4-Rings Basketball Stand w/ Storage Bag","BASKETBALL",239.09,"ACTIVE"]
["1004608","Bean BagS Nylon 4X4 Squares St/12","BEANBAGS",13.09,"ACTIVE"]
["1480097","Market Expo 2 -IN-1 Dual Ended 8 Colors Set of 4","BEANBAGS",101.99,"ACTIVE"]
["081940","School Smart Tab Index Asst Clr 11x8.5 5-Tab","BINDER SUPPLIES",0.97,"ACTIVE"]
["081933","School Smart Tab Index Asst Clr 11x8.5 8-Tab","BINDER SUPPLIES",1.17,"ACTIVE"]
["067506","School Smart Hvy Dty Topload Sht Prtctor Pk/100","BINDER SUPPLIES",10.57,"ACTIVE"]
["081942","School Smart ErasableTab Dividers Asst 5-Tab","BINDER SUPPLIES",0.97,"ACTIVE"]
["081936","School Smart Tab Index Clear 11x8.5 8-Tab","BINDER SUPPLIES",2.69,"ACTIVE"]
["086388","School Smart View Binder 1\" White","BINDERS",2.97,"ACTIVE"]
["086389","School Smart View Binder 1\" Black","BINDERS",2.97,"ACTIVE"]
["086391","School Smart View Binder 1-1/2\" White","BINDERS",3.37,"ACTIVE"]
["086358","School Smart Vinyl Binder 1\" Black","BINDERS",2.0699999999999998,"ACTIVE"]
["086394","School Smart View Binder 2\" White","BINDERS",3.77,"ACTIVE"]
["086360","School Smart Vinyl Binder 1\" Blue","BINDERS",2.0699999999999998,"ACTIVE"]
["086397","School Smart View Binder 3\" White","BINDERS",4.97,"ACTIVE"]
["086395","School Smart View Binder 2\" Black","BINDERS",7.99,"ACTIVE"]
["086359","School Smart Vinyl Binder 1\" Red","BINDERS",2.37,"ACTIVE"]
["086371","School Smart Vinyl Binder 2\" Black","BINDERS",7.09,"ACTIVE"]
["086373","School Smart Vinyl Binder 2\" Blue","BINDERS",7.09,"ACTIVE"]
["086396","School Smart View Binder 2\" Blue","BINDERS",7.99,"ACTIVE"]
["086398","School Smart View Binder 3\" Black","BINDERS",9.99,"ACTIVE"]
["086378","School Smart Vinyl Binder 3\" Black","BINDERS",9.09,"ACTIVE"]
["086372","School Smart Vinyl Binder 2\" Red","BINDERS",7.09,"ACTIVE"]
["086399","School Smart View Binder 3\" Blue","BINDERS",9.99,"ACTIVE"]
["086381","School Smart Vinyl Binder 3\" Blue","BINDERS",9.09,"ACTIVE"]
["086379","School Smart Vinyl Binder 3\" Red","BINDERS",9.09,"ACTIVE"]
["1485742","Board RR 22x28 White Sch Sm 6ply Pk/25","BOARD - RAILROAD",18.29,"ACTIVE"]
["1485727","Board RR 22x28 White Sch Sm 4ply Pk/25","BOARD - RAILROAD",14.89,"ACTIVE"]
["1485744","Board RR 22x28 Black Sch Sm 6ply Pk/25","BOARD - RAILROAD",18.29,"ACTIVE"]
["1485739","Board RR 22x28 Asst Sch Sm 4ply Pk/25","BOARD - RAILROAD",14.89,"ACTIVE"]
["1485756","Board RR 22x28 Asst Sch Sm 6ply Pk/100","BOARD - RAILROAD",57.99,"ACTIVE"]
["085496","White Tagboard 9x12 150# Pk/100","BOARD - TAG",5.49,"ACTIVE"]
["085497","White Tagboard 12x18 150# Pk/100","BOARD - TAG",10.89,"ACTIVE"]
["085510","Manila Tagboard 9x12 150# Pk/100","BOARD - TAG",5.89,"ACTIVE"]
["085498","White Tagboard 18x24 150# Pk/100","BOARD - TAG",26.69,"ACTIVE"]
["085511","Manila Tagboard 12x18 150# Pk/100","BOARD - TAG",11.49,"ACTIVE"]
["085519","Colored Tagboard 9x12 100# Asst Pk/100","BOARD - TAG",7.19,"ACTIVE"]
["085499","White Tagboard 24x36 150# Pk/100","BOARD - TAG",49.99,"ACTIVE"]
["085521","Colored Tagboard 12x18 100# Asst Pk/100","BOARD - TAG",14.29,"ACTIVE"]
["085513","Manila Tagboard 18x24 150# Pk/100","BOARD - TAG",23.89,"ACTIVE"]
["085516","Manila Tagboard 24x36 150# Pk/100","BOARD - TAG",47.69,"ACTIVE"]
["1439309","Marbleback Comp Book Hard 200pg","BOOKS - COMPOSITION",3.19,"ACTIVE"]
["1335763","Comp Book 9.75x7.5 100/Shts Stiff Cover","BOOKS - COMPOSITION",3.89,"ACTIVE"]
["026029","Comp Book 9.75x7.5 100/Shts Hard Cover","BOOKS - COMPOSITION - SCHOOL SMART",1.97,"ACTIVE"]
["002052","Comp Book 9.75x7.75 60/Shts Flex Cover","BOOKS - COMPOSITION - SCHOOL SMART",2.0699999999999998,"ACTIVE"]
["002040","Comp Book 9.75x7.5 60/Shts Hard Cover","BOOKS - COMPOSITION - SCHOOL SMART",2.0699999999999998,"ACTIVE"]
["085267","Comp Book 10.5x8 Spiral Bound 70/Shts","BOOKS - COMPOSITION - SCHOOL SMART",1.57,"ACTIVE"]
["002058","Comp Book 8.5x7 48/Shts Flex Cover","BOOKS - COMPOSITION - SCHOOL SMART",0.77,"ACTIVE"]
["026026","Comp Book 9.75x7.5 100/Sht Semi Hrd Cvr","BOOKS - COMPOSITION - SCHOOL SMART",2.0699999999999998,"ACTIVE"]
["002046","Comp Book 8.5x7 36/Shts Flex Cover","BOOKS - COMPOSITION - SCHOOL SMART",0.56999999999999995,"ACTIVE"]
["085421","Comp Book 11x8 Spiral Bound 100/Shts","BOOKS - COMPOSITION - SCHOOL SMART",2.17,"ACTIVE"]
["245404","Comp Book Marbleback Flex 80pg","BOOKS - COMPOSITION - SCHOOL SMART",2.89,"ACTIVE"]
["002043","Comp Book 8.5x7 20/Shts Flex Cover","BOOKS - COMPOSITION - SCHOOL SMART",1.89,"ACTIVE"]
["002055","Comp Book 9.75x7.75 48/Shts Flex Cover","BOOKS - COMPOSITION - SCHOOL SMART",2.4900000000000002,"ACTIVE"]
["085301","Comp Book 9.75x7.75 Skip Gr2 Blue 50Sht","BOOKS - COMPOSITION - SCHOOL SMART",3.49,"ACTIVE"]
["085264","Comp Book 10.5x8 Spiral Bound 40/Shts","BOOKS - COMPOSITION - SCHOOL SMART",1.59,"ACTIVE"]
["086768","Comp Book 9.75x7.5 100/Sht Hrd Cvr Unrld","BOOKS - COMPOSITION - SCHOOL SMART",3.19,"ACTIVE"]
["002049","Comp Book 8.5x7 24/Shts Flex Cover","BOOKS - COMPOSITION - SCHOOL SMART",1.89,"ACTIVE"]
["085420","Comp Book 11x8 Spiral Bound 80/Shts","BOOKS - COMPOSITION - SCHOOL SMART",2.37,"ACTIVE"]
["085302","Comp Book 9.75x7.75 Skip Gr3 Red 50Sht","BOOKS - COMPOSITION - SCHOOL SMART",3.49,"ACTIVE"]
["085312","Comp Book 9.75x7.75 Quad Ruled 100Shts","BOOKS - COMPOSITION - SCHOOL SMART",2.4900000000000002,"ACTIVE"]
["086769","Comp Book 9.75x7.5 150/Shts Hard Cover","BOOKS - COMPOSITION - SCHOOL SMART",4.8899999999999997,"ACTIVE"]
["085310","Comp Book 10.5x8 Stitched Cvr 48/Shts","BOOKS - COMPOSITION - SCHOOL SMART",3.19,"ACTIVE"]
["085298","Comp Book 9.75x7.75 Skip Gr1 Green 50Sht","BOOKS - COMPOSITION - SCHOOL SMART",3.49,"ACTIVE"]
["085307","Comp Book 8.5x7 Stitched Cvr 48/Shts","BOOKS - COMPOSITION - SCHOOL SMART",2.79,"ACTIVE"]
["085309","Comp Book 10.5x8 Stitched Cvr 36/Shts","BOOKS - COMPOSITION - SCHOOL SMART",2.4900000000000002,"ACTIVE"]
["085303","Comp Book 8.5x7 Stitched Cvr 20/Shts","BOOKS - COMPOSITION - SCHOOL SMART",1.69,"ACTIVE"]
["085305","Comp Book 8.5x7 Stitched Cvr 24/Shts","BOOKS - COMPOSITION - SCHOOL SMART",1.89,"ACTIVE"]
["085304","Comp Book 8.5x7 Stitched Cvr 20/Shts Mgn","BOOKS - COMPOSITION - SCHOOL SMART",1.69,"ACTIVE"]
["1467045","Comp Book Marble Cover 100/Shts Pk/6","BOOKS - COMPOSITION - SCHOOL SMART",18.690000000000001,"ACTIVE"]
["1330062","Felt 9x12 Asst Pk/25","BURLAP & FELT",9.99,"ACTIVE"]
["084088","School Smart Primary Calculator","CALCULATORS",5.99,"ACTIVE"]
["064053","TI-108/BK Solar Calculator","CALCULATORS",8.69,"ACTIVE"]
["084085","8 Digit Dual Power Calculator","CALCULATORS",10.79,"ACTIVE"]
["084281","Dual Power Tilt Screen Calculator","CALCULATORS",13.69,"ACTIVE"]
["250920","Award - Star of The Week! Pk/30","CERTIFICATES",4.29,"ACTIVE"]
["372285","Award - It's Your Birthday! Cool! Pk/30","CERTIFICATES",4.29,"ACTIVE"]
["251067","Certificates-It's Your Birthday! Pk/30","CERTIFICATES",4.29,"ACTIVE"]
["009219","School Smart Felt Eraser 5\"x2\"x1-5/16\"","CHALK & CHALKBOARD ACCESSORIES",2.09,"ACTIVE"]
["084832","School Smart Dustless Chalk White Bx/12","CHALK & CHALKBOARD ACCESSORIES",0.89,"ACTIVE"]
["008034","Crayola Anti Dust Chalk White Bx/12","CHALK & CHALKBOARD ACCESSORIES",1.19,"ACTIVE"]
["084833","School Smart Dustless Chalk Assorted Bx/12","CHALK & CHALKBOARD ACCESSORIES",0.89,"ACTIVE"]
["009222","School Smart Felt Eraser 6\"x2\"x1-5/16\"","CHALK & CHALKBOARD ACCESSORIES",3.49,"ACTIVE"]
["034265","Prang Hygieia Chalk Yellow Bx/12","CHALK & CHALKBOARD ACCESSORIES",1.29,"ACTIVE"]
["085327","Sch Sm Chart Tblt 24x32 1\" Rld 25 Shts","CHART & EASEL PADS",6.97,"ACTIVE"]
["085335","Sch Sm Chart Tblt 24x32 1.5/Skip 25 Shts","CHART & EASEL PADS",5.67,"ACTIVE"]
["085337","Sch Sm Chart Tblt 24x16 1.5/Skip 25 Shts","CHART & EASEL PADS",3.27,"ACTIVE"]
["085332","Sch Sm Chart Tblt 24x16 1\" Rld 25 Shts","CHART & EASEL PADS",4.8899999999999997,"ACTIVE"]
["048198","Sch Sm Primary Chrt Pd 24x36 SW/Rld 2HP","CHART & EASEL PADS",17.89,"ACTIVE"]
["1467043","Sch Sm Easel Pd 27x34 1'' Rld Pk/4","CHART & EASEL PADS",55.99,"ACTIVE"]
["1467042","Sch Sm Easel Pd 27x34 Unruled 50 Sht Pk/4","CHART & EASEL PADS",55.99,"ACTIVE"]
["006426","Chart Paper Recycled 24x32 Ruled 1\"","CHART & EASEL PADS",34.89,"ACTIVE"]
["1467044","Sch Sm Easel Pd 27x34 1\"Cross Rld 50 Sht Pk/4","CHART & EASEL PADS",55.99,"ACTIVE"]
["007620","Crayola Modeling Clay Assorted 1#","CLAY - MODELING",4.29,"ACTIVE"]
["391130","Crayola Model Magic White 2 Lbs","CLAY - MODELING",26.79,"ACTIVE"]
[1590699,"TISSUE FACIAL BOX 100 SHEETS","CLEANING & FACILITY SUPPLIES",{"$error":"#N/A"},"ACTIVE"]
["025504","Facial Tissue Kleenex Bx/125","CLEANING & FACILITY SUPPLIES",3.29,"ACTIVE"]
["1272480","Sch Sm Clipboard Letter Masonite","CLIPBOARDS",1.27,"ACTIVE"]
["038075","Sch Sm Clipboard Letter Asst Neon","CLIPBOARDS",5.99,"ACTIVE"]
["1272481","Sch Sm Clipboard Legal Masonite","CLIPBOARDS",5.99,"ACTIVE"]
["084475","School Smart Smooth Ppr Clips Jumbo Pk/100","CLIPS & FASTENERS",1.17,"ACTIVE"]
["084472","School Smart Smooth Ppr Clips 1-1/4\" Pk/100","CLIPS & FASTENERS",0.37,"ACTIVE"]
["032400","School Smart Binder Clip Medium 1-1/4\" Bx/12","CLIPS & FASTENERS",1.17,"ACTIVE"]
["032397","School Smart Binder Clip Small 3/4\" Bx/12","CLIPS & FASTENERS",0.56999999999999995,"ACTIVE"]
["084442","School Smart Non-Skid Ppr Clips Jumbo Pk/100","CLIPS & FASTENERS",1.99,"ACTIVE"]
["084473","School Smart Non-Skid Ppr Clips 1-1/4\" Pk/100","CLIPS & FASTENERS",0.69,"ACTIVE"]
["032403","School Smart Binder Clip Large 2\" Blk Bx/12","CLIPS & FASTENERS",5.09,"ACTIVE"]
["023974","Sch Sm Vinyl Ppr Clips Jumbo Asst Pk/40","CLIPS & FASTENERS",1.19,"ACTIVE"]
["059946","School Smart Fasteners #2, 1/2\" Pk/100","CLIPS & FASTENERS",1.69,"ACTIVE"]
["059952","School Smart Fasteners #4, 1\" Pk/100","CLIPS & FASTENERS",2.29,"ACTIVE"]
["059949","School Smart Fasteners #3, 3/4\" Pk/100","CLIPS & FASTENERS",1.89,"ACTIVE"]
["020874","School Smart Rubber Bands #54 1/4 Lb","CLIPS & FASTENERS",2.4900000000000002,"ACTIVE"]
["077434","Sch Sm Magnetic Clips 2\" Pk/12","CLIPS & FASTENERS",9.19,"ACTIVE"]
["000069","Butterfly Clips Small 1-1/2\" Bx/50","CLIPS & FASTENERS",2.69,"ACTIVE"]
["000066","Butterfly Clips Large 2-1/2\" Bx/12","CLIPS & FASTENERS",1.89,"ACTIVE"]
["245787","Sch Sm Colored Pencil 7\" 3.3mm St/12","COLORED PENCILS",1.27,"ACTIVE"]
["008220","Crayola Colored Pencil Full Sz St/24","COLORED PENCILS",4.37,"ACTIVE"]
["008211","Crayola Colored Pencil Full Sz St/8","COLORED PENCILS",1.77,"ACTIVE"]
["245788","Sch Sm Colored Pencil 7\" 3.3mm St/24","COLORED PENCILS",2.4700000000000002,"ACTIVE"]
["405826","Prang Colored Pencil Thick St/12","COLORED PENCILS",3.29,"ACTIVE"]
["214005","Crayola Colored Pencil Classpack Pk/240","COLORED PENCILS",46.39,"ACTIVE"]
["245789","Sch Sm Colored Pencil 7\" 10 Clrs Pk/250","COLORED PENCILS",43.49,"ACTIVE"]
["061350","SAFE-T Compass","COMPASSES & PROTRACTORS",1.89,"ACTIVE"]
["084410","Sch Sm Clear Plastic Protractor 6\" Pk/12","COMPASSES & PROTRACTORS",3.69,"ACTIVE"]
["716167","Classic Orange Game Cones 12''","CONES",9.2899999999999991,"ACTIVE"]
["061458","BIC Wite-Out Correction Fluid Quick Dry","CORRECTION PRODUCTS",1.99,"ACTIVE"]
["079593","BIC Wite-Out EZ Correction Tape Wht","CORRECTION PRODUCTS",3.89,"ACTIVE"]
["061419","BIC Wite-Out Correction Fluid Extra Cvr","CORRECTION PRODUCTS",2.4900000000000002,"ACTIVE"]
["026931","Liquid Paper Correction Fluid White","CORRECTION PRODUCTS",2.4900000000000002,"ACTIVE"]
["069787","BIC Wite-Out Shake'n Sqeeze Pen Wht .3oz","CORRECTION PRODUCTS",3.49,"ACTIVE"]
["1498788","Correction Fluid Liquid Paper Fast Dry Pack of 3","CORRECTION PRODUCTS",7.49,"ACTIVE"]
["085819","Pipe Cleaners 12\" Asst Colors Pk/100","CRAFT MATERIALS",1.97,"ACTIVE"]
["007512","Crayola Crayons Std Tuck Bx/16","CRAYONS",1.57,"ACTIVE"]
["007521","Crayola Crayons Std Tuck Bx/24","CRAYONS",1.97,"ACTIVE"]
["007503","Crayola Crayons Std Tuck Bx/8","CRAYONS",0.97,"ACTIVE"]
["008716","Crayola Crayons Multicultural Std Bx/8","CRAYONS",1.27,"ACTIVE"]
["008717","Crayola Crayons Multicultural Lrg Bx/8","CRAYONS",2.29,"ACTIVE"]
["001287","Prang Crayons Std Tuck Bx/8","CRAYONS",1.0900000000000001,"ACTIVE"]
["001305","Prang Crayons Large Lift Lid Bx/8","CRAYONS",1.19,"ACTIVE"]
["001290","Prang Crayons Std Tuck Bx/16","CRAYONS",1.49,"ACTIVE"]
["405604","Prang Crayons Large Tuck Bx/8","CRAYONS",2.79,"ACTIVE"]
["245948","School Smart Crayons Standard Sz St/8","CRAYONS",0.89,"ACTIVE"]
["245949","School Smart Crayons Standard Sz St/16","CRAYONS",1.29,"ACTIVE"]
["245950","School Smart Crayons Standard Sz St/24","CRAYONS",1.69,"ACTIVE"]
["245951","School Smart Crayons Large Sz St/8","CRAYONS",1.69,"ACTIVE"]
["040281","Thesaurus Paperback","DICTIONARIES/REFERENCE",8.99,"ACTIVE"]
["1499292","Merriam Websters School Dictionary Hard","DICTIONARIES/REFERENCE",27.99,"ACTIVE"]
["1333699","Merriam Websters Dictionary for Children","DICTIONARIES/REFERENCE",17.989999999999998,"ACTIVE"]
["059193","Cray-Pas Jr Artist Oil Pastels St/25","DRAWING - PASTELS",4.6900000000000004,"ACTIVE"]
["084465","School Smart Magnetic Dry Eraser","DRY ERASE BOARDS & ACCESSORIES",1.17,"ACTIVE"]
["076878","Expo Eraser","DRY ERASE BOARDS & ACCESSORIES",3.57,"ACTIVE"]
["059634","Expo Wht Bd Cleaner 8 Oz Pump Spray","DRY ERASE BOARDS & ACCESSORIES",4.57,"ACTIVE"]
["1325120","Sch Sm Dry Erse Bd Plain 9x12 Pk/10","DRY ERASE BOARDS & ACCESSORIES",16.77,"ACTIVE"]
["175136","Expo Dry Erse Lw Odr Chisel St/4","DRY ERASE MARKERS",6.47,"ACTIVE"]
["1333744","Expo Dry Erse Lw Odr Chisel Black Pk/12","DRY ERASE MARKERS",19.37,"ACTIVE"]
["1354253","Sch Sm Dry Erase Mrkrs Chisel Black Pk/12","DRY ERASE MARKERS",10.47,"ACTIVE"]
["1400750","Sch Sm Dry Erase Mrkrs Chisel Asst Pk/4","DRY ERASE MARKERS",3.97,"ACTIVE"]
["1333748","Expo Dry Erse Lw Odr Fine Black Pk/12","DRY ERASE MARKERS",25.09,"ACTIVE"]
["059745","Expo Dry Erse Lw Odr Bullet St/4","DRY ERASE MARKERS",8.39,"ACTIVE"]
["1400751","Sch Sm Dry Erase Mrkrs Chisel Asst Pk/8","DRY ERASE MARKERS",9.49,"ACTIVE"]
["026284","Expo Dry Erse Lw Odr Chisel St/8","DRY ERASE MARKERS",17.690000000000001,"ACTIVE"]
["1333729","Expo Dry Erse Lw Odr Bullet Black Pk/12","DRY ERASE MARKERS",25.49,"ACTIVE"]
["1333746","Expo Dry Erse Lw Odr Chisel Blue Pk/12","DRY ERASE MARKERS",25.89,"ACTIVE"]
["1402628","Sch Sm Dry Erase Mrkrs Bullet Asst Pk/4","DRY ERASE MARKERS",5.09,"ACTIVE"]
["1354271","Sch Sm Dry Erase Mrkrs Chisel Blue Pk/12","DRY ERASE MARKERS",14.29,"ACTIVE"]
["1333745","Expo Dry Erse Lw Odr Chisel Red Pk/12","DRY ERASE MARKERS",25.89,"ACTIVE"]
["1333747","Expo Dry Erse Lw Odr Chisel Green Pk/12","DRY ERASE MARKERS",25.89,"ACTIVE"]
["1333731","Expo Dry Erse Lw Odr Bullet Blue Pk/12","DRY ERASE MARKERS",25.49,"ACTIVE"]
["1400753","Sch Sm Dry Erase Mrkrs Chisel Red Pk/12","DRY ERASE MARKERS",14.29,"ACTIVE"]
["1400752","Sch Sm Dry Erase Mrkrs Chisel Grn Pk/12","DRY ERASE MARKERS",14.29,"ACTIVE"]
["1333750","Expo Dry Erse Lw Odr Fine Blue Pk/12","DRY ERASE MARKERS",25.09,"ACTIVE"]
["1369745","Expo Neon DryErase Mrk Asst St/5","DRY ERASE MARKERS",14.29,"ACTIVE"]
["085038","Sch Sm Kraft w/ Clasp 6x9 Bx/100","ENVELOPES & ACCESSORIES",13.99,"ACTIVE"]
["085022","Sch Sm Env Wht #10 Regular Bx/500","ENVELOPES & ACCESSORIES",17.989999999999998,"ACTIVE"]
["085044","Sch Sm Kraft w/ Clasp 9x12 Bx/100","ENVELOPES & ACCESSORIES",15.99,"ACTIVE"]
["085046","Sch Sm Kraft w/ Clasp 10x13 Bx/100","ENVELOPES & ACCESSORIES",19.989999999999998,"ACTIVE"]
["085045","Sch Sm Kraft w/ Clasp 9.5x12.5 Bx/100","ENVELOPES & ACCESSORIES",16.39,"ACTIVE"]
["020754","Sch Sm Eraser Caps Red Pk/144","ERASERS",2.97,"ACTIVE"]
["077355","Sch Sm Eraser Med 2-1/8x3/4x3/8 Pk/12","ERASERS",3.09,"ACTIVE"]
["077356","Sch Sm Eraser Large 2-1/2x1x3/8 Pk/12","ERASERS",3.99,"ACTIVE"]
["077354","Sch Sm Eraser Small 1-7/8x3/4x3/8 Pk/36","ERASERS",4.37,"ACTIVE"]
["077362","Magic Rub Eraser Pk/12","ERASERS",13.29,"ACTIVE"]
["438473","Sax Gum Art Eraser 1x1x1 Pk/24","ERASERS",8.39,"ACTIVE"]
["015741","Sch Sm Manil File Fldr Ltr 1/3 Ct Pk/100","FILING SUPPLIES",12.37,"ACTIVE"]
["070311","Sch Sm Hanging File Fldr Ltr 1/5 Pk/25","FILING SUPPLIES",15.09,"ACTIVE"]
["015738","Sch Sm Manil File Fldr Ltr 1/2 Ct Pk/100","FILING SUPPLIES",21.99,"ACTIVE"]
["070314","Sch Sm Hanging File Fldr Ltr 1/3 Pk/25","FILING SUPPLIES",15.09,"ACTIVE"]
["015744","Sch Sm Manil File Fldr Ltr 1/5 Ct Pk/100","FILING SUPPLIES",21.99,"ACTIVE"]
["015735","Sch Sm Manila File Fldr Ltr Strt Pk/100","FILING SUPPLIES",21.99,"ACTIVE"]
["015765","Sch Sm Manil File Fldr Lgl 1/3 Ct Pk/100","FILING SUPPLIES",21.99,"ACTIVE"]
["007366","Flying Disc Foam Gradestuff - St/6","FLYING DISCS",28.39,"ACTIVE"]
["007292","TechnoSkin Foam Soccer Ball Sz 4,8\" St/6","FOAM BALLS",164.49,"ACTIVE"]
["1451290","Sch Sm Glitter Silver 16 Oz Shaker Top","GLITTER",10.39,"ACTIVE"]
["1451293","Sch Sm Glitter Gold 16 Oz Shaker Top","GLITTER",10.39,"ACTIVE"]
["1451289","Sch Sm Glitter Red 16 Oz Shaker Top","GLITTER",10.39,"ACTIVE"]
["1451292","Sch Sm Glitter Blue 16 Oz Shaker Top","GLITTER",10.39,"ACTIVE"]
["1451294","Sch Sm Glitter Green 16 Oz Shaker Top","GLITTER",10.39,"ACTIVE"]
["1451295","Sch Sm Glitter Multi 16 Oz Shaker Top","GLITTER",10.39,"ACTIVE"]
["008970","Elmer's No Run School Glue 4 Oz","GLUE & ADHESIVES",0.97,"ACTIVE"]
["1337116","Elmer's Glue-All 4 Oz","GLUE & ADHESIVES",1.57,"ACTIVE"]
["008973","Elmer's No Run School Glue 8 Oz","GLUE & ADHESIVES",1.67,"ACTIVE"]
["023136","Elmer's Wash Glue Stick Purple .77 Oz","GLUE & ADHESIVES",1.17,"ACTIVE"]
["213964","Elmer's Wash Glue Stick Clear .77 Oz","GLUE & ADHESIVES",0.97,"ACTIVE"]
["024550","Prang Glue Stick Clear .28 Oz","GLUE & ADHESIVES",0.89,"ACTIVE"]
["1337117","Elmer's Glue-All 7-5/8 Oz","GLUE & ADHESIVES",2.4700000000000002,"ACTIVE"]
["024088","Elmer's Wash Glue Stick Clear .21 Oz","GLUE & ADHESIVES",0.47,"ACTIVE"]
["1354157","Sch Sm Glue Sticks .28 Oz White Pk/30","GLUE & ADHESIVES",5.77,"ACTIVE"]
["1353957","Sch Sm Glue Sticks .74 Oz White Pk/12","GLUE & ADHESIVES",8.09,"ACTIVE"]
["1353959","Sch Sm Glue Sticks .28 Oz White Pk/12","GLUE & ADHESIVES",3.17,"ACTIVE"]
["023135","Elmer's Wash Glue Stick Purple .21 Oz","GLUE & ADHESIVES",0.47,"ACTIVE"]
["1353961","Sch Sm Glue Sticks 1.27 Oz White Pk/12","GLUE & ADHESIVES",19.690000000000001,"ACTIVE"]
["1353960","Sch Sm Glue Sticks .28 Oz Purple Pk/12","GLUE & ADHESIVES",3.17,"ACTIVE"]
["024553","Prang Glue Stick Clear .74 Oz","GLUE & ADHESIVES",1.89,"ACTIVE"]
["1289194","Elmer's Washable Clear School Glue 5 Oz","GLUE & ADHESIVES",3.99,"ACTIVE"]
["008979","Elmer's No Run School Glue Gallon","GLUE & ADHESIVES",15.37,"ACTIVE"]
["1353962","Sch Sm Glue Sticks 1.27 Oz Purple Pk/12","GLUE & ADHESIVES",19.690000000000001,"ACTIVE"]
["1353958","Sch Sm Glue Sticks .74 Oz Purple Pk/12","GLUE & ADHESIVES",8.09,"ACTIVE"]
["020867","UHU Glue Stick Purple 1.41 Oz","GLUE & ADHESIVES",3.69,"ACTIVE"]
["1335454","Crayola Wash Glue Sticks .29 Oz Pk/12","GLUE & ADHESIVES",9.19,"ACTIVE"]
["038443","Elmer's Acid Free Rubber Cement 4 Oz","GLUE & ADHESIVES",2.89,"ACTIVE"]
["1335453","Crayola Wash Glue Sticks .88 Oz Pk/12","GLUE & ADHESIVES",17.89,"ACTIVE"]
["1565695","Sch Sm Washable Glue 8 Oz Pk/12","GLUE & ADHESIVES",15.09,"ACTIVE"]
["055965","Elmer's Rubber Cement Quart","GLUE & ADHESIVES",15.09,"ACTIVE"]
["1494331","Elmer's Glue-All 1.25 Oz Pk/12","GLUE & ADHESIVES",24.29,"ACTIVE"]
["1565694","Sch Sm Washable Glue 4 Oz Pk/48","GLUE & ADHESIVES",29.99,"ACTIVE"]
["471194","Dap Bluestik Adhesive Reusable Putty 1oz","HANGING & MOUNTING SUPPLIES",2.4900000000000002,"ACTIVE"]
["060915","E-Z Up Stikki Clips Standard White Pk/20","HANGING & MOUNTING SUPPLIES",5.99,"ACTIVE"]
["042030","Scotch Wall Mounting Tabs Pk/48","HANGING & MOUNTING SUPPLIES",5.69,"ACTIVE"]
["1298145","School Smart Highlighter Asst St/6","HIGHLIGHTERS",2.4700000000000002,"ACTIVE"]
["1298146","School Smart Highlighter Yellow Pk/12","HIGHLIGHTERS",3.67,"ACTIVE"]
["038857","BIC Brite Liner Highlighter St/5 Colors","HIGHLIGHTERS",3.67,"ACTIVE"]
["418828","Sharpie Accent Tank Style 6-Color St/6","HIGHLIGHTERS",5.67,"ACTIVE"]
["077279","BIC Brite Liner Highlighter Yellow Pk/12","HIGHLIGHTERS",8.69,"ACTIVE"]
["077281","Sharpie Accent Tank Style Yellow Pk/12","HIGHLIGHTERS",12.69,"ACTIVE"]
["077284","Sharpie Accent Tank Style Fl Ylw Pk/12","HIGHLIGHTERS",12.69,"ACTIVE"]
["088706","Index Cards 3x5 Narrow Rule White Pk/100","INDEX CARDS & DIVIDERS",0.77,"ACTIVE"]
["088708","Index Cards 3x5 Plain White Pk/100","INDEX CARDS & DIVIDERS",0.77,"ACTIVE"]
["088710","Index Cards 4x6 Narrow Rule White Pk/100","INDEX CARDS & DIVIDERS",2.09,"ACTIVE"]
["088711","Index Cards 3x5 Narrow Rule Asst Pk/100","INDEX CARDS & DIVIDERS",1.69,"ACTIVE"]
["088713","Index Cards 5x8 Narrow Rule White Pk/100","INDEX CARDS & DIVIDERS",3.19,"ACTIVE"]
["088712","Index Cards 4x6 Plain White Pk/100","INDEX CARDS & DIVIDERS",2.09,"ACTIVE"]
["088714","Index Cards 5x8 Plain White Pk/100","INDEX CARDS & DIVIDERS",3.19,"ACTIVE"]
["088849","Index Cards 3x5 Neon Ruled Pk/100","INDEX CARDS & DIVIDERS",4.29,"ACTIVE"]
["1329866","Index Card Box 3'' X 5'' Black","INDEX CARDS & DIVIDERS",3.99,"ACTIVE"]
["087966","Hvy-Duty Electric Inflator, 1/8 HP Motor","INFLATORS/PUMPS",134.69,"ACTIVE"]
["1004676","Jump Ropes Vinyl 7' St/6","JUMP ROPE & JUMPING",10.49,"ACTIVE"]
["705343","Sportime Spring Balls Junior Hop 45, 17\"-21\"","JUMPING",27.99,"ACTIVE"]
["088292","Sportime Jumbo Gradestuff Pack St/132","LARGE SCHOOL PACKS",507.49,"ACTIVE"]
["087956","Sportime Gradestuff Elem Sch Pack St/48","LARGE SCHOOL PACKS",375.59,"ACTIVE"]
["008148","Crayola Classic Conical St/8","MARKERS",2.87,"ACTIVE"]
["008196","Crayola Washable Classic Conical St/8","MARKERS",3.77,"ACTIVE"]
["059391","Sharpie Marker Black Fine Ea","MARKERS",1.0900000000000001,"ACTIVE"]
["008172","Crayola Classic Fine St/8","MARKERS",2.97,"ACTIVE"]
["059364","Mr. Sketch Scented Markers Chisel St/12","MARKERS",11.49,"ACTIVE"]
["024046","Crayola Bold Conical Asst St/8","MARKERS",3.17,"ACTIVE"]
["086411","Sch Sm Watercolor Mkrs Wash Chisel St/8","MARKERS",2.4700000000000002,"ACTIVE"]
["008538","Crayola Washable Classic Fine St/8","MARKERS",3.97,"ACTIVE"]
["008544","Crayola Washable Bold Conical St/8","MARKERS",3.77,"ACTIVE"]
["008199","Crayola Washable Tropical Conical St/8","MARKERS",4.17,"ACTIVE"]
["077235","Sch Sm Felt Tip Pen Fine Black Pk/12","MARKERS",9.2899999999999991,"ACTIVE"]
["059424","Mr. Sketch Scented Markers Fine St/10","MARKERS",8.09,"ACTIVE"]
["1354254","Sch Sm Permanent Markers Asst Pk/8","MARKERS",7.49,"ACTIVE"]
["059361","Mr. Sketch Scented Markers Chisel St/8","MARKERS",7.69,"ACTIVE"]
["1354255","Sch Sm Permanent Markers Black Pk/12","MARKERS",9.99,"ACTIVE"]
["086409","Sch Sm Watercolor Markers Chisel St/8","MARKERS",2.17,"ACTIVE"]
["402353","Sharpie Markers Chisel Asst St/8","MARKERS",9.9700000000000006,"ACTIVE"]
["085026","Sch Sm Fine Line Black Pk/12","MARKERS",6.69,"ACTIVE"]
["1333733","Sharpie Markers Chisel Black Pk/12","MARKERS",15.67,"ACTIVE"]
["1587153","UHU Glue Stick Purple 1.41 Oz","MARKERS",13.29,"ACTIVE"]
["049515","Sch Sm Felt Tip Pen Fine Asst Clrs St/8","MARKERS",9.2899999999999991,"ACTIVE"]
["008547","Crayola Washable Bold Fine St/8","MARKERS",5.49,"ACTIVE"]
["086408","Sch Sm Watercolor Markers Chisel St/12","MARKERS",5.49,"ACTIVE"]
["077237","Sch Sm Felt Tip Pen Fine Blue Pk/12","MARKERS",9.2899999999999991,"ACTIVE"]
["077236","Sch Sm Felt Tip Pen Fine Red Pk/12","MARKERS",9.2899999999999991,"ACTIVE"]
["077238","Sch Sm Felt Tip Pen Fine Green Pk/12","MARKERS",9.2899999999999991,"ACTIVE"]
["086400","Sch Sm Waterclr Mrks Chisel Black St/12","MARKERS",5.49,"ACTIVE"]
["085032","Sch Sm Ultra Fine Line Black Pk/12","MARKERS",7.99,"ACTIVE"]
["1354260","Sch Sm Permanent Markers Blue Pk/12","MARKERS",9.99,"ACTIVE"]
["085037","Sch Sm Extra Fine Line Black Pk/12","MARKERS",7.99,"ACTIVE"]
["1400755","Sch Sm Permanent Markers Red Pk/12","MARKERS",9.99,"ACTIVE"]
["1354261","Sch Sm Permanent Markers Green Pk/12","MARKERS",9.99,"ACTIVE"]
["038136","Paper Mate Liquid Flair Xtra Fine Black","MARKERS",3.09,"ACTIVE"]
["086405","Sch Sm Waterclr Mrks Chisel Red St/12","MARKERS",5.49,"ACTIVE"]
["086401","Sch Sm Waterclr Mrks Chisel Blue St/12","MARKERS",5.49,"ACTIVE"]
["038138","Paper Mate Liquid Flair Xtra Fine Blue","MARKERS",3.09,"ACTIVE"]
["085030","Sch Sm Fine Line Red Pk/12","MARKERS",6.69,"ACTIVE"]
["086403","Sch Sm Waterclr Mrks Chisel Green St/12","MARKERS",5.49,"ACTIVE"]
["085028","Sch Sm Fine Line Blue Pk/12","MARKERS",6.69,"ACTIVE"]
["1539779","Market Expo 2 -IN-1 Dual Ended 16 Colors Set of 8","MARKERS",27.49,"ACTIVE"]
["1333734","Market Expo 2 -IN-1 Dual Ended 12 Colors Set of 6","MARKERS",15.99,"ACTIVE"]
["1333735","Sharpie Markers Chisel Blue Pk/12","MARKERS",15.99,"ACTIVE"]
["1539778","Market Expo 2 -IN-1 Dual Ended 12 Colors Set of 6","MARKERS",21.09,"ACTIVE"]
["1539777","Market Expo 2 -IN-1 Dual Ended 8 Colors Set of 4","MARKERS",13.99,"ACTIVE"]
["089837","Sch Sm Flexible Ruler 12\"","MEASURING INSTRUMENTS",0.77,"ACTIVE"]
["089838","Sch Sm Flexible Ruler 6\"","MEASURING INSTRUMENTS",0.56999999999999995,"ACTIVE"]
["015348","Sch Sm Metal Edge Dbl Bev Wood Ruler 12\"","MEASURING INSTRUMENTS",1.0900000000000001,"ACTIVE"]
["081901","Sch Sm Wood Plain End Meterstick","MEASURING INSTRUMENTS",3.09,"ACTIVE"]
["081903","Sch Sm Hardwood Ruler 12\" Brass Edge","MEASURING INSTRUMENTS",1.0900000000000001,"ACTIVE"]
["1473614","Sch Sm Plastic Ruler 12\" Asst Clrs St/6","MEASURING INSTRUMENTS",3.09,"ACTIVE"]
["461006","Sax White Bristle Brush Assortment St/24","NATURAL",25.59,"ACTIVE"]
["1438377","Mead Wirebound Ntbk 140pg Wide","NOTEBOOKS",1.67,"ACTIVE"]
["075191","Telephone Message Book 400/Book","OFFICE FORMS",6.69,"ACTIVE"]
["007698","Crayola Artista II Wash Tempera White Pt","PAINT - CRAYOLA WASHABLE ",4.79,"ACTIVE"]
["007701","Crayola Artista II Wash Tempera Yellw Pt","PAINT - CRAYOLA WASHABLE ",4.79,"ACTIVE"]
["007692","Crayola Artista II Wash Tempera Red Pt","PAINT - CRAYOLA WASHABLE ",4.79,"ACTIVE"]
["007683","Crayola Artista II Wash Tempera Green Pt","PAINT - CRAYOLA WASHABLE ",4.79,"ACTIVE"]
["007677","Crayola Artista II Wash Tempera Blue Pt","PAINT - CRAYOLA WASHABLE ",4.79,"ACTIVE"]
["007689","Crayola Artista II Wash Tempera Orang Pt","PAINT - CRAYOLA WASHABLE ",4.79,"ACTIVE"]
["008151","Crayola Artista II Wash Tempera Black Pt","PAINT - CRAYOLA WASHABLE ",4.79,"ACTIVE"]
["007680","Crayola Artista II Wash Tempera Brown Pt","PAINT - CRAYOLA WASHABLE ",4.79,"ACTIVE"]
["007695","Crayola Artista II Wash Tempera Viol Pt","PAINT - CRAYOLA WASHABLE ",4.79,"ACTIVE"]
["008580","Crayola Artista II Wash Tempera Turq Pt","PAINT - CRAYOLA WASHABLE ",4.79,"ACTIVE"]
["007686","Crayola Artista II Wash Tempera Magenta Pt","PAINT - CRAYOLA WASHABLE ",4.79,"ACTIVE"]
["201965","Crayola Artista II Wash Tempera Peach Pt","PAINT - CRAYOLA WASHABLE ",4.79,"ACTIVE"]
["085831","Sponge Cellulose Small 6x3-1/2x1","PAINT - MISC, ADDITIVES & ACCESSORIES",1.89,"ACTIVE"]
["085845","Sponge Cellulose Medium 6x4-1/4x1-1/2","PAINT - MISC, ADDITIVES & ACCESSORIES",3.29,"ACTIVE"]
["1439203","Sch Sm Wshbl Tempera Paint White Pint","PAINT - SCHOOL SMART WASHABLE",2.69,"ACTIVE"]
["1439201","Sch Sm Wshbl Tempera Paint Red Pint","PAINT - SCHOOL SMART WASHABLE",2.69,"ACTIVE"]
["1439211","Sch Sm Wshbl Tempera Paint Blue Pint","PAINT - SCHOOL SMART WASHABLE",2.69,"ACTIVE"]
["1439212","Sch Sm Wshbl Tempera Paint Green Pint","PAINT - SCHOOL SMART WASHABLE",2.69,"ACTIVE"]
["1439208","Sch Sm Wshbl Tempera Paint Yellow Pint","PAINT - SCHOOL SMART WASHABLE",2.69,"ACTIVE"]
["1439202","Sch Sm Wshbl Tempera Paint Black Pint","PAINT - SCHOOL SMART WASHABLE",2.69,"ACTIVE"]
["1439206","Sch Sm Wshbl Tempera Paint Orange Pint","PAINT - SCHOOL SMART WASHABLE",2.69,"ACTIVE"]
["1439210","Sch Sm Wshbl Tempera Paint Purple Pint","PAINT - SCHOOL SMART WASHABLE",2.69,"ACTIVE"]
["1439209","Sch Sm Wshbl Tempera Paint Brown Pint","PAINT - SCHOOL SMART WASHABLE",2.69,"ACTIVE"]
["1439204","Sch Sm Wshbl Tempera Paint Pink Pint","PAINT - SCHOOL SMART WASHABLE",2.69,"ACTIVE"]
["1439207","Sch Sm Wshbl Tempera Paint Turq Pint","PAINT - SCHOOL SMART WASHABLE",2.69,"ACTIVE"]
["1439205","Sch Sm Wshbl Tempera Paint Magenta Pint","PAINT - SCHOOL SMART WASHABLE",2.69,"ACTIVE"]
["008190","Crayola Washable Watercolors Oval St/8","PAINT - WATERCOLOR",2.87,"ACTIVE"]
["1329860","Art-Time Watercolors Oval Pan St/8","PAINT - WATERCOLOR",2.09,"ACTIVE"]
["007560","Crayola Semi-Moist Watercolors Oval St/8","PAINT - WATERCOLOR",5.29,"ACTIVE"]
["001233","Prang Watercolors Oval Pan St/8","PAINT - WATERCOLOR",3.37,"ACTIVE"]
["405691","Prang Watercolor Oval w/Brush Asst St/8","PAINT - WATERCOLOR",3.19,"ACTIVE"]
["1329841","Art-Time Washable Watercolors St/8","PAINT - WATERCOLOR",2.29,"ACTIVE"]
["406021","Prang Watercolor Oval w/Brush Asst St/16","PAINT - WATERCOLOR",10.29,"ACTIVE"]
["1329859","Art-Time Watercolors Oval Pan St/16","PAINT - WATERCOLOR",2.79,"ACTIVE"]
["085778","Sch Smart Young Artist Asst St/36","PAINT BRUSHES",84.89,"ACTIVE"]
["085425","Sch Sm Comp Essay 8.5x11 w/Mgn 16# Wht","PAPER - COMPOSITION & ESSAY",9.19,"ACTIVE"]
["085424","Sch Sm Comp Essay 8x10.5 w/Mgn 15# Wht","PAPER - COMPOSITION & ESSAY",9.09,"ACTIVE"]
["085432","Sch Sm Comp Essay 8x10.5 No/Mgn 16# Wht","PAPER - COMPOSITION & ESSAY",9.09,"ACTIVE"]
["085433","Sch Sm Comp Essay 8.5x11 No/Mgn 16# Wht","PAPER - COMPOSITION & ESSAY",9.89,"ACTIVE"]
["1506456","Sunworks 9x12 White Pk/50","PAPER - CONSTRUCTION SUNWORKS",1.89,"ACTIVE"]
["1506484","Sunworks 12x18 White Pk/50","PAPER - CONSTRUCTION SUNWORKS",3.59,"ACTIVE"]
["201183","Sunworks 9x12 Black Pk/50","PAPER - CONSTRUCTION SUNWORKS",1.89,"ACTIVE"]
["1506461","Sunworks 12x18 Black Pk/50","PAPER - CONSTRUCTION SUNWORKS",3.59,"ACTIVE"]
["201192","Sunworks 9x12 Yellow Pk/50","PAPER - CONSTRUCTION SUNWORKS",1.89,"ACTIVE"]
["201190","Sunworks 9x12 Bright White Pk/50","PAPER - CONSTRUCTION SUNWORKS",1.89,"ACTIVE"]
["201201","Sunworks 12x18 Bright White Pk/50","PAPER - CONSTRUCTION SUNWORKS",3.59,"ACTIVE"]
["201181","Sunworks 9x12 Orange Pk/50","PAPER - CONSTRUCTION SUNWORKS",1.89,"ACTIVE"]
["1506449","Sunworks 9x12 Holiday Green Pk/50","PAPER - CONSTRUCTION SUNWORKS",1.89,"ACTIVE"]
["201202","Sunworks 12x18 Yellow Pk/50","PAPER - CONSTRUCTION SUNWORKS",3.59,"ACTIVE"]
["201204","Sunworks 9x12 Assorted Pk/50","PAPER - CONSTRUCTION SUNWORKS",1.89,"ACTIVE"]
["1506433","Sunworks 9x12 Red Pk/50","PAPER - CONSTRUCTION SUNWORKS",1.89,"ACTIVE"]
["201187","Sunworks 9x12 Holiday Red Pk/50","PAPER - CONSTRUCTION SUNWORKS",1.89,"ACTIVE"]
["1506477","Sunworks 12x18 Holiday Green Pk/50","PAPER - CONSTRUCTION SUNWORKS",3.59,"ACTIVE"]
["201207","Sunworks 9x12 Brown Pk/50","PAPER - CONSTRUCTION SUNWORKS",1.89,"ACTIVE"]
["201208","Sunworks 9x12 Pink Pk/50","PAPER - CONSTRUCTION SUNWORKS",1.89,"ACTIVE"]
["201189","Sunworks 9x12 Violet Pk/50","PAPER - CONSTRUCTION SUNWORKS",1.89,"ACTIVE"]
["201234","Sunworks 9x12 Blue Pk/50","PAPER - CONSTRUCTION SUNWORKS",1.89,"ACTIVE"]
["201199","Sunworks 12x18 Holiday Red Pk/50","PAPER - CONSTRUCTION SUNWORKS",3.59,"ACTIVE"]
["299528","Sunworks 12x18 Orange Pk/50","PAPER - CONSTRUCTION SUNWORKS",3.59,"ACTIVE"]
["201184","Sunworks 9x12 Sky Blue Pk/50","PAPER - CONSTRUCTION SUNWORKS",1.89,"ACTIVE"]
["201217","Sunworks 12x18 Blue Pk/50","PAPER - CONSTRUCTION SUNWORKS",3.59,"ACTIVE"]
["200013","Sunworks 12x18 Red Pk/50","PAPER - CONSTRUCTION SUNWORKS",3.59,"ACTIVE"]
["201205","Sunworks 12x18 Assorted Pk/50","PAPER - CONSTRUCTION SUNWORKS",3.59,"ACTIVE"]
["201198","Sunworks 12x18 Sky Blue Pk/50","PAPER - CONSTRUCTION SUNWORKS",3.59,"ACTIVE"]
["1506446","Sunworks 9x12 Bright Blue Pk/50","PAPER - CONSTRUCTION SUNWORKS",1.89,"ACTIVE"]
["201211","Sunworks 12x18 Brown Pk/50","PAPER - CONSTRUCTION SUNWORKS",3.59,"ACTIVE"]
["201210","Sunworks 12x18 Pink Pk/50","PAPER - CONSTRUCTION SUNWORKS",3.59,"ACTIVE"]
["201200","Sunworks 12x18 Violet Pk/50","PAPER - CONSTRUCTION SUNWORKS",3.59,"ACTIVE"]
["1506457","Sunworks 9x12 Bright Green Pk/50","PAPER - CONSTRUCTION SUNWORKS",1.89,"ACTIVE"]
["201225","Sunworks 9x12 Gray Pk/50","PAPER - CONSTRUCTION SUNWORKS",1.89,"ACTIVE"]
["1506473","Sunworks 12x18 Bright Blue Pk/50","PAPER - CONSTRUCTION SUNWORKS",3.59,"ACTIVE"]
["201232","Sunworks 9x12 Turquioise Pk/50","PAPER - CONSTRUCTION SUNWORKS",1.89,"ACTIVE"]
["201178","Sunworks 9x12 Dark Blue Pk/50","PAPER - CONSTRUCTION SUNWORKS",1.89,"ACTIVE"]
["201222","Sunworks 9x12 Brown Pk/50","PAPER - CONSTRUCTION SUNWORKS",1.89,"ACTIVE"]
["1506482","Sunworks 12x18 Gray Pk/50","PAPER - CONSTRUCTION SUNWORKS",3.59,"ACTIVE"]
["1506440","Sunworks 9x12 Light Brown Pk/50","PAPER - CONSTRUCTION SUNWORKS",1.89,"ACTIVE"]
["1506450","Sunworks 9x12 Light Green Pk/50","PAPER - CONSTRUCTION SUNWORKS",1.89,"ACTIVE"]
["200047","Sunworks 9x12 Hot Pink Pk/50","PAPER - CONSTRUCTION SUNWORKS",1.89,"ACTIVE"]
["201195","Sunworks 12x18 Dark Blue Pk/50","PAPER - CONSTRUCTION SUNWORKS",3.59,"ACTIVE"]
["1506466","Sunworks 12x18 Dark Brown Pk/50","PAPER - CONSTRUCTION SUNWORKS",3.59,"ACTIVE"]
["201229","Sunworks 9x12 Magenta Pk/50","PAPER - CONSTRUCTION SUNWORKS",1.89,"ACTIVE"]
["201216","Sunworks 12x18 Turquoise Pk/50","PAPER - CONSTRUCTION SUNWORKS",3.59,"ACTIVE"]
["1506485","Sunworks 12x18 Bright Green Pk/50","PAPER - CONSTRUCTION SUNWORKS",3.59,"ACTIVE"]
["201231","Sunworks 9x12 Lilac Pk/50","PAPER - CONSTRUCTION SUNWORKS",1.89,"ACTIVE"]
["201175","Sunworks 9x12 Dark Green Pk/50","PAPER - CONSTRUCTION SUNWORKS",1.89,"ACTIVE"]
["200029","Sunworks 12x18 Light Green Pk/50","PAPER - CONSTRUCTION SUNWORKS",3.59,"ACTIVE"]
["1506467","Sunworks 12x18 Light Brown Pk/50","PAPER - CONSTRUCTION SUNWORKS",3.59,"ACTIVE"]
["200050","Sunworks 12x18 Hot Pink Pk/50","PAPER - CONSTRUCTION SUNWORKS",3.59,"ACTIVE"]
["1506469","Sunworks 12x18 Lilac Pk/50","PAPER - CONSTRUCTION SUNWORKS",3.59,"ACTIVE"]
["1506452","Sunworks 9x12 Yellow Orange Pk/50","PAPER - CONSTRUCTION SUNWORKS",1.89,"ACTIVE"]
["201213","Sunworks 12x18 Magenta Pk/50","PAPER - CONSTRUCTION SUNWORKS",3.59,"ACTIVE"]
["201193","Sunworks 12x18 Dark Green Pk/50","PAPER - CONSTRUCTION SUNWORKS",3.59,"ACTIVE"]
["1506480","Sunworks 12x18 Yellow Orange Pk/50","PAPER - CONSTRUCTION SUNWORKS",3.59,"ACTIVE"]
["054141","Tru-Ray 12x18 White Pk/50","PAPER - CONSTRUCTION TRU-RAY",4.07,"ACTIVE"]
["1006764","Tru-Ray 9x12 White Pk/50","PAPER - CONSTRUCTION TRU-RAY",2.0699999999999998,"ACTIVE"]
["054150","Tru-Ray 12x18 Black Pk/50","PAPER - CONSTRUCTION TRU-RAY",4.07,"ACTIVE"]
["1006763","Tru-Ray 9x12 Black Pk/50","PAPER - CONSTRUCTION TRU-RAY",2.0699999999999998,"ACTIVE"]
["054069","Tru-Ray 12x18 Yellow Pk/50","PAPER - CONSTRUCTION TRU-RAY",4.07,"ACTIVE"]
["053970","Tru-Ray 9x12 Yellow Pk/50","PAPER - CONSTRUCTION TRU-RAY",2.0699999999999998,"ACTIVE"]
["053964","Tru-Ray 9x12 Orange Pk/50","PAPER - CONSTRUCTION TRU-RAY",2.0699999999999998,"ACTIVE"]
["054063","Tru-Ray 12x18 Orange Pk/50","PAPER - CONSTRUCTION TRU-RAY",4.07,"ACTIVE"]
["054129","Tru-Ray 12x18 Blue Pk/50","PAPER - CONSTRUCTION TRU-RAY",4.07,"ACTIVE"]
["054108","Tru-Ray 12x18 Sky Blue Pk/50","PAPER - CONSTRUCTION TRU-RAY",4.07,"ACTIVE"]
["054075","Tru-Ray 12x18 Festive Green Pk/50","PAPER - CONSTRUCTION TRU-RAY",4.07,"ACTIVE"]
["054111","Tru-Ray 12x18 Royal Blue Pk/50","PAPER - CONSTRUCTION TRU-RAY",4.07,"ACTIVE"]
["054027","Tru-Ray 9x12 Blue Pk/50","PAPER - CONSTRUCTION TRU-RAY",2.0699999999999998,"ACTIVE"]
["054054","Tru-Ray 9x12 Assorted Pk/50","PAPER - CONSTRUCTION TRU-RAY",2.69,"ACTIVE"]
["054078","Tru-Ray 12x18 Turquoise Pk/50","PAPER - CONSTRUCTION TRU-RAY",4.07,"ACTIVE"]
["053976","Tru-Ray 9x12 Festive Green Pk/50","PAPER - CONSTRUCTION TRU-RAY",2.0699999999999998,"ACTIVE"]
["054009","Tru-Ray 9x12 Sky Blue Pk/50","PAPER - CONSTRUCTION TRU-RAY",2.0699999999999998,"ACTIVE"]
["054012","Tru-Ray 9x12 Royal Blue Pk/50","PAPER - CONSTRUCTION TRU-RAY",2.0699999999999998,"ACTIVE"]
["216776","Tru-Ray 12x18 Holiday Red Pk/50","PAPER - CONSTRUCTION TRU-RAY",4.07,"ACTIVE"]
["054135","Tru-Ray 12x18 Dark Brown Pk/50","PAPER - CONSTRUCTION TRU-RAY",4.07,"ACTIVE"]
["216777","Tru-Ray 9x12 Holiday Green Pk/50","PAPER - CONSTRUCTION TRU-RAY",2.0699999999999998,"ACTIVE"]
["054411","Tru-Ray 9x12 Purple Pk/50","PAPER - CONSTRUCTION TRU-RAY",2.0699999999999998,"ACTIVE"]
["216775","Tru-Ray 9x12 Holiday Red Pk/50","PAPER - CONSTRUCTION TRU-RAY",2.0699999999999998,"ACTIVE"]
["054033","Tru-Ray 9x12 Dark Brown Pk/50","PAPER - CONSTRUCTION TRU-RAY",2.0699999999999998,"ACTIVE"]
["054138","Tru-Ray 12x18 Warm Brown Pk/50","PAPER - CONSTRUCTION TRU-RAY",4.07,"ACTIVE"]
["054414","Tru-Ray 12x18 Purple Pk/50","PAPER - CONSTRUCTION TRU-RAY",4.07,"ACTIVE"]
["054096","Tru-Ray 12x18 Pink Pk/50","PAPER - CONSTRUCTION TRU-RAY",4.07,"ACTIVE"]
["053997","Tru-Ray 9x12 Pink Pk/50","PAPER - CONSTRUCTION TRU-RAY",2.0699999999999998,"ACTIVE"]
["216778","Tru-Ray 12x18 Holiday Green Pk/50","PAPER - CONSTRUCTION TRU-RAY",4.07,"ACTIVE"]
["054036","Tru-Ray 9x12 Warm Brown Pk/50","PAPER - CONSTRUCTION TRU-RAY",2.0699999999999998,"ACTIVE"]
["054132","Tru-Ray 12x18 Tan Pk/50","PAPER - CONSTRUCTION TRU-RAY",4.07,"ACTIVE"]
["054156","Tru-Ray 12x18 Assorted Pk/50","PAPER - CONSTRUCTION TRU-RAY",5.69,"ACTIVE"]
["053979","Tru-Ray 9x12 Turquoise Pk/50","PAPER - CONSTRUCTION TRU-RAY",2.0699999999999998,"ACTIVE"]
["054084","Tru-Ray 12x18 Brilliant Lime Pk/50","PAPER - CONSTRUCTION TRU-RAY",4.07,"ACTIVE"]
["054000","Tru-Ray 9x12 Shocking Pink Pk/50","PAPER - CONSTRUCTION TRU-RAY",2.0699999999999998,"ACTIVE"]
["054099","Tru-Ray 12x18 Shocking Pink Pk/50","PAPER - CONSTRUCTION TRU-RAY",4.07,"ACTIVE"]
["054030","Tru-Ray 9x12 Tan Pk/50","PAPER - CONSTRUCTION TRU-RAY",2.0699999999999998,"ACTIVE"]
["054144","Tru-Ray 12x18 Gray Pk/50","PAPER - CONSTRUCTION TRU-RAY",4.07,"ACTIVE"]
["053985","Tru-Ray 9x12 Brilliant Lime Pk/50","PAPER - CONSTRUCTION TRU-RAY",2.0699999999999998,"ACTIVE"]
["054087","Tru-Ray 12x18 Violet Pk/50","PAPER - CONSTRUCTION TRU-RAY",4.07,"ACTIVE"]
["054057","Tru-Ray 12x18 Magenta Pk/50","PAPER - CONSTRUCTION TRU-RAY",4.07,"ACTIVE"]
["054042","Tru-Ray 9x12 Gray Pk/50","PAPER - CONSTRUCTION TRU-RAY",2.0699999999999998,"ACTIVE"]
["054114","Tru-Ray 12x18 Lilac Pk/50","PAPER - CONSTRUCTION TRU-RAY",4.07,"ACTIVE"]
["054015","Tru-Ray 9x12 Lilac Pk/50","PAPER - CONSTRUCTION TRU-RAY",2.0699999999999998,"ACTIVE"]
["053988","Tru-Ray 9x12 Violet Pk/50","PAPER - CONSTRUCTION TRU-RAY",2.0699999999999998,"ACTIVE"]
["054072","Tru-Ray 12x18 Chartreuse Pk/50","PAPER - CONSTRUCTION TRU-RAY",4.07,"ACTIVE"]
["053958","Tru-Ray 9x12 Magenta Pk/50","PAPER - CONSTRUCTION TRU-RAY",2.0699999999999998,"ACTIVE"]
["054402","Tru-Ray 9x12 Gold Pk/50","PAPER - CONSTRUCTION TRU-RAY",2.0699999999999998,"ACTIVE"]
["054006","Tru-Ray 9x12 Light Green Pk/50","PAPER - CONSTRUCTION TRU-RAY",2.0699999999999998,"ACTIVE"]
["054126","Tru-Ray 12x18 Dark Green Pk/50","PAPER - CONSTRUCTION TRU-RAY",4.07,"ACTIVE"]
["054105","Tru-Ray 12x18 Light Green Pk/50","PAPER - CONSTRUCTION TRU-RAY",4.07,"ACTIVE"]
["054405","Tru-Ray 12x18 Gold Pk/50","PAPER - CONSTRUCTION TRU-RAY",4.07,"ACTIVE"]
["054003","Tru-Ray 9x12 Light Yellow Pk/50","PAPER - CONSTRUCTION TRU-RAY",2.0699999999999998,"ACTIVE"]
["054024","Tru-Ray 9x12 Dark Green Pk/50","PAPER - CONSTRUCTION TRU-RAY",2.0699999999999998,"ACTIVE"]
["053973","Tru-Ray 9x12 Chartreuse Pk/50","PAPER - CONSTRUCTION TRU-RAY",2.0699999999999998,"ACTIVE"]
["054102","Tru-Ray 12x18 Light Yellow Pk/50","PAPER - CONSTRUCTION TRU-RAY",4.07,"ACTIVE"]
["248444","Tru-Ray 12x18 Burgandy Pk/50","PAPER - CONSTRUCTION TRU-RAY",4.07,"ACTIVE"]
["248443","Tru-Ray 9x12 Burgundy  Pk/50","PAPER - CONSTRUCTION TRU-RAY",2.0699999999999998,"ACTIVE"]
["053907","Copier Ppr 8.5x11 20# Blue Pk/500","PAPER - COPY",11.99,"ACTIVE"]
["053913","Copier Ppr 8.5x11 20# Yellow Pk/500","PAPER - COPY",11.99,"ACTIVE"]
["053919","Copier Ppr 8.5x11 20# Green Pk/500","PAPER - COPY",11.99,"ACTIVE"]
["053922","Copier Ppr 8.5x11 20# Pink Pk/500","PAPER - COPY",11.99,"ACTIVE"]
["1299349","Willcopy Ppr 20# Ltr 92 Br Wht CS/10 RMS","PAPER - COPY",67.09,"ACTIVE"]
["1289120","Willcopy Ppr 20# White 8.5x14 CS/5000","PAPER - COPY",92.29,"ACTIVE"]
["053931","White Drawing Paper 9x12 60# Ream","PAPER - DRAWING/SKETCHING",15.89,"ACTIVE"]
["053946","White Drawing Paper 12x18 80# Ream","PAPER - DRAWING/SKETCHING",27.59,"ACTIVE"]
["053943","White Drawing Paper 9x12 80# Ream","PAPER - DRAWING/SKETCHING",17.59,"ACTIVE"]
["053934","White Drawing Paper 12x18 60# Ream","PAPER - DRAWING/SKETCHING",32.89,"ACTIVE"]
["053925","White Drawing Paper 9x12 50# Ream","PAPER - DRAWING/SKETCHING",9.49,"ACTIVE"]
["085529","Manila Drawing Paper 9x12 40# Ream","PAPER - DRAWING/SKETCHING",9.89,"ACTIVE"]
["053928","White Drawing Paper 12x18 50# Ream","PAPER - DRAWING/SKETCHING",20.79,"ACTIVE"]
["085549","Manila Drawing Paper 12x18 50# Ream","PAPER - DRAWING/SKETCHING",19.09,"ACTIVE"]
["085541","Manila Drawing Paper 9x12 50# Ream","PAPER - DRAWING/SKETCHING",10.49,"ACTIVE"]
["085531","Manila Drawing Paper 12x18 40# Ream","PAPER - DRAWING/SKETCHING",19.690000000000001,"ACTIVE"]
["085285","Filler Ppr 8x10.5 15# 3/8 Rld Pk/200","PAPER - FILLER & LEGAL PADS",2.17,"ACTIVE"]
["085289","Filler Ppr 8.5x11 15# 9/32 3-Hole Pk/200","PAPER - FILLER & LEGAL PADS",2.97,"ACTIVE"]
["085287","Filler Ppr 8.5x11 16# 3/8 Rld Pk/500","PAPER - FILLER & LEGAL PADS",9.49,"ACTIVE"]
["085283","Filler Ppr 8x10.5 16# 3/8 Rld w/Mgn","PAPER - FILLER & LEGAL PADS",8.49,"ACTIVE"]
["085290","Sch Sm Steno Notebk 6x9 White 80 Shts","PAPER - FILLER & LEGAL PADS",1.89,"ACTIVE"]
["085292","Sch Sm Steno Notebk 6x9 Green 80 Shts","PAPER - FILLER & LEGAL PADS",1.89,"ACTIVE"]
["027433","Legal Pads 8.5x11.75 Wht 50 Sht/Pd Pk/12","PAPER - FILLER & LEGAL PADS",12.09,"ACTIVE"]
["027430","Legal Pads 8.5x11.75 Ylw 50 Sht/Pd Pk/12","PAPER - FILLER & LEGAL PADS",12.09,"ACTIVE"]
["085212","Sch Sm Skip-A-Line Gr 2, 3/4\" Rld LW","PAPER - HANDWRITING",6.89,"ACTIVE"]
["085213","Sch Sm Skip-A-Line Gr 3, 1/2\" Rld LW","PAPER - HANDWRITING",6.89,"ACTIVE"]
["085357","Sch Sm Alt Rld Gr 2, 11x8.5 3/4\" Rld LW","PAPER - HANDWRITING",7.29,"ACTIVE"]
["085359","Sch Sm Alt Rld Gr 3, 11x8.5 1/2\" Rld LW","PAPER - HANDWRITING",7.29,"ACTIVE"]
["1438375","Mead Primary Journal","PAPER - HANDWRITING-JOURNALS",3.89,"ACTIVE"]
["085277","Graph Paper 8.5x11, 1/4\" Rld","PAPER - NEWSPRINT & GRAPH",5.67,"ACTIVE"]
["085596","White Newsprint Paper 30# 9x12","PAPER - NEWSPRINT & GRAPH",5.89,"ACTIVE"]
["085597","White Newsprint Paper 30# 12x18","PAPER - NEWSPRINT & GRAPH",11.89,"ACTIVE"]
["006180","Spectra Tissue 20x30 Std Clrs Pk/100","PAPER - TISSUE ",13.69,"ACTIVE"]
["1574181","Sch Smart Utility Bx 8.25 x 5 x 2.5 Red","PENCIL ACCESSORIES",1.27,"ACTIVE"]
["003171","School Smart Pencil Pouch","PENCIL ACCESSORIES",0.97,"ACTIVE"]
["078466","Sch Smart Pencil Sharpener Asst Pk/24","PENCIL SHARPENERS",2.4900000000000002,"ACTIVE"]
["038342","X-Acto Sch Pro 1670 Electric Sharpener","PENCIL SHARPENERS",53.29,"ACTIVE"]
["380144","Boston KS 1031 Pencil Sharpener","PENCIL SHARPENERS",18.690000000000001,"ACTIVE"]
["380174","X-Acto 1900 Electric Sharpener Gray","PENCIL SHARPENERS",35.19,"ACTIVE"]
["380147","Boston L 1041 Pencil Sharpener","PENCIL SHARPENERS",18.690000000000001,"ACTIVE"]
["084453","Pencil #2 Sch Smart Pre-Sharpened Pk/12","PENCILS",1.97,"ACTIVE"]
["017646","Pencil #2 Soft Ticonderoga Pk/12","PENCILS",2.4700000000000002,"ACTIVE"]
["083276","Pencil #2 School Smart Pk/12","PENCILS",1.97,"ACTIVE"]
["087190","Pencil #2 Ticonderoga Pre-Sharpnd Pk/12","PENCILS",2.87,"ACTIVE"]
["069839","Pencil #2 Oriole Pre-Sharpened Pk/12","PENCILS",3.69,"ACTIVE"]
["084808","Pencil #2 School Smart Pk/144","PENCILS",25.09,"ACTIVE"]
["038109","Pencil #2 Oriole Pk/12","PENCILS",3.09,"ACTIVE"]
["075258","Pencil #2 Soft Ticonderoga Pk/96","PENCILS",19.77,"ACTIVE"]
["1396854","Pencil #2 Ticonderoga Ylw PreShrp Pk/30","PENCILS",8.57,"ACTIVE"]
["017670","Pencil Ticonderoga Laddie w/Eraser Pk/12","PENCILS",4.57,"ACTIVE"]
["083275","Pencil #2 School Smart Pk/96","PENCILS",17.989999999999998,"ACTIVE"]
["017652","Pencil #2.5 Ticonderoga Pk/12","PENCILS",4.49,"ACTIVE"]
["017664","Pencil Ticonderoga Laddie no Eraser Pk/12","PENCILS",6.69,"ACTIVE"]
["084449","Pencil #2 Starter w/Eraser Sch Sm Pk/12","PENCILS",7.49,"ACTIVE"]
["084448","Pencil #2 Starter no Eraser Sch Sm Pk/12","PENCILS",7.09,"ACTIVE"]
["077227","Pencil BIC Mechanical .5mm Clear Pk/12","PENCILS - MECHANICAL",5.99,"ACTIVE"]
["077228","Pencil BIC Mechanical .7mm Clear Pk/12","PENCILS - MECHANICAL",5.99,"ACTIVE"]
["027465","BIC Round Stic Pen Black Medium Pk/12","PENS",1.57,"ACTIVE"]
["027469","BIC Round Stic Pen Blue Medium Pk/12","PENS",1.57,"ACTIVE"]
["027466","BIC Round Stic Pen Red Medium Pk/12","PENS",2.09,"ACTIVE"]
["038158","Sch Sm Stick Pens Rnd Med Black Pk/12","PENS",1.17,"ACTIVE"]
["038160","Sch Sm Stick Pens Rnd Med Blue Pk/12","PENS",1.17,"ACTIVE"]
["038159","Sch Sm Stick Pens Rnd Med Red Pk/12","PENS",1.69,"ACTIVE"]
["027468","BIC Round Stic Pen Black Fine Pk/12","PENS",2.09,"ACTIVE"]
["027470","BIC Round Stic Pen Blue Fine Pk/12","PENS",2.09,"ACTIVE"]
["038162","Sch Sm Stick Pens Rnd Fine Black Pk/12","PENS",1.69,"ACTIVE"]
["037227","Swirl Double Ended Pen Fine Red/Blue","PENS",1.69,"ACTIVE"]
["002827","Uni-Ball Vision Roller Ball Black .7mm","PENS",3.09,"ACTIVE"]
["038164","Sch Sm Stick Pens Rnd Fine Blue Pk/12","PENS",1.69,"ACTIVE"]
["038163","Sch Sm Stick Pens Rnd Fine Red Pk/12","PENS",1.69,"ACTIVE"]
["037230","Swirl Double Ended Pen Fine Red/Black","PENS",1.69,"ACTIVE"]
["002829","Uni-Ball Vision Roller Ball Blue .7mm","PENS",3.09,"ACTIVE"]
["002828","Uni-Ball Vision Roller Ball Red .7mm","PENS",3.09,"ACTIVE"]
["002824","Uni-Ball Vision Roller Ball Black .5mm","PENS",3.09,"ACTIVE"]
["002826","Uni-Ball Vision Roller Ball Blue .5mm","PENS",3.09,"ACTIVE"]
["002825","Uni-Ball Vision Roller Ball Red .5mm","PENS",3.09,"ACTIVE"]
["077375","BIC Grip Roller Ball Black .7mm Pk/12","PENS",15.29,"ACTIVE"]
["003354","Sch Sm Push Pins 3/8\"L Clear Pk/100","PINS & TACKS",1.99,"ACTIVE"]
["003351","Sch Sm Push Pins 3/8\"L Asst Clrs Pk/100","PINS & TACKS",1.99,"ACTIVE"]
["021780","Sch Smart Safety Pins Asst Sizes Pk/50","PINS & TACKS",1.29,"ACTIVE"]
["084900","Sch Sm Portfol 2 Pkt w/out Fstnr Asst Pk/25","PORTFOLIOS & REPORT COVERS",6.07,"ACTIVE"]
["084901","Sch Sm Portfol 2 Pkt Hvydty Fstnr Asst Pk/25","PORTFOLIOS & REPORT COVERS",7.57,"ACTIVE"]
["084886","Sch Sm 2 Pocket Folder 9x12 Assorted Bx/25","PORTFOLIOS & REPORT COVERS",10.29,"ACTIVE"]
["067504","Sch Sm Portfol 2 Pkt Smooth w/out Fstnr Asst Pk/25","PORTFOLIOS & REPORT COVERS",9.99,"ACTIVE"]
["067505","Sch Sm Portfol 2 Pkt Fstnr Asst Pk/25","PORTFOLIOS & REPORT COVERS",10.39,"ACTIVE"]
["021630","8-Pocket Portfolio w/Wht Pkts 8.5x11","PORTFOLIOS & REPORT COVERS",5.99,"ACTIVE"]
["424663","Soft-Kut Print Blocks 4x6","PRINTING/ETCHING/BLOCK PRINTING",2.39,"ACTIVE"]
["039423","Sch Sm Hand Punch 1-Hole Nickel Plated","PUNCHES",0.97,"ACTIVE"]
["025983","Sch Sm Adj Paper Punch 3-Hole Black","PUNCHES",11.09,"ACTIVE"]
["1473671","Class Recd Bk 6/7 Wk 8 Sub 9-1/4x12-1/4","RECORD BOOKS",7.99,"ACTIVE"]
["372698","Fiskars Scissors For Kids 5\" Blunt","SCISSORS & CUTTING TOOLS",2.0699999999999998,"ACTIVE"]
["085007","Stainls Stl Econo Scissors 8'' Straight","SCISSORS & CUTTING TOOLS",1.77,"ACTIVE"]
["372701","Fiskars Scissors For Kids 5\" Pointed","SCISSORS & CUTTING TOOLS",2.0699999999999998,"ACTIVE"]
["085008","Stainls Stl Econo Scissors 8'' Bent","SCISSORS & CUTTING TOOLS",2.39,"ACTIVE"]
["001737","No. 1 Craft Knife w/Safety Cap","SCISSORS & CUTTING TOOLS",4.49,"ACTIVE"]
["245996","Fiskars Scissors 8\" Straight","SCISSORS & CUTTING TOOLS",15.99,"ACTIVE"]
["371747","Fiskars Scissors 8'' Right Hand Bent","SCISSORS & CUTTING TOOLS",19.09,"ACTIVE"]
["084876","Sch Sm Notes Ylw 3\"x3\" 100 Sht/Pd-Pk/12","SELF-STICK NOTES & PAGE MARKERS",3.97,"ACTIVE"]
["042024","Post-It Note Pop-Up 3\"x3\" Refill Yellow","SELF-STICK NOTES & PAGE MARKERS",1.77,"ACTIVE"]
["084874","Sch Sm Notes Ylw 1.5x2 100 Sht/Pd Pk/12","SELF-STICK NOTES & PAGE MARKERS",2.4900000000000002,"ACTIVE"]
["040548","Post-It Note 1.5\"x2\" Ylw 100 Sht/Pd Pk/12","SELF-STICK NOTES & PAGE MARKERS",9.89,"ACTIVE"]
["028622","Post-It Note 3\"x3\" Ylw 100 Sht/Pad Pk/12","SELF-STICK NOTES & PAGE MARKERS",19.989999999999998,"ACTIVE"]
["1396803","Sch Sm Notes Ylw 4\"x6\" Ruled Pk/5","SELF-STICK NOTES & PAGE MARKERS",6.49,"ACTIVE"]
["084879","Sch Sm Notes Ylw 3\"x5\" 100 Sht/Pd-Pk/12","SELF-STICK NOTES & PAGE MARKERS",9.09,"ACTIVE"]
["028640","Post-It Note 3\"x5\" Ylw 100 Sht/Pad Pk/12","SELF-STICK NOTES & PAGE MARKERS",30.29,"ACTIVE"]
["006465","Sch Sm Sentence Strips 3x24 Rnbw Pk/100","SENTENCE STRIPS",3.17,"ACTIVE"]
["085473","Sch Sm Spelling Slips 4x10.5 3/8 Rld SW","SPELLING BOOKS & PAPER",5.59,"ACTIVE"]
["1005401","Utility Sequencing Spot Markers 10\" St/6","SPOT MARKERS",15.89,"ACTIVE"]
["084906","Sch Smart Stamp Pad 3\" x 4\" Black","STAMPS & STAMP PADS",3.29,"ACTIVE"]
["084909","Sch Smart Stamp Pad 3\" x 4\" Red","STAMPS & STAMP PADS",3.29,"ACTIVE"]
["084907","Sch Smart Stamp Pad 3\" x 4\" Blue","STAMPS & STAMP PADS",3.29,"ACTIVE"]
["084908","Sch Smart Stamp Pad 3\" x 4\" Green","STAMPS & STAMP PADS",3.29,"ACTIVE"]
["061059","School Smart Staples Strd 210/Strip-Bx/5000","STAPLERS & STAPLES",1.37,"ACTIVE"]
["038178","School Smart Stapler Full Strip Black","STAPLERS & STAPLES",4.87,"ACTIVE"]
["000189","School Smart Staple Remover","STAPLERS & STAPLES",0.89,"ACTIVE"]
["061188","Swingline Full Strp 444 Comm Stapler Blk","STAPLERS & STAPLES",15.99,"ACTIVE"]
["061149","Swingline Full Strp 747 Clsc Stapler Blk","STAPLERS & STAPLES",27.99,"ACTIVE"]
["1451996","Birthday Crowns Pk/30","STUDENT GIFTS",15.99,"ACTIVE"]
["049502","My Birthday Star Adhesive Badges Pk/36","STUDENT GIFTS",6.79,"ACTIVE"]
["1481889","2-Part Carbonless Student Admit Slip Book","STUDENT PASSES/PERMITS",7.69,"ACTIVE"]
["040590","Highland Masking Tape 2600 1\"x 60 Yd Rl","TAPE & DISPENSERS",2.4700000000000002,"ACTIVE"]
["040587","Highland Maskng Tape 2600 3/4''x 60 Yd Rl","TAPE & DISPENSERS",2.69,"ACTIVE"]
["040602","Highland 5910 Transp 1\" Core 3/4\"x36 Yds","TAPE & DISPENSERS",2.09,"ACTIVE"]
["040617","Sch Sm Tape Dispenser Black 1\" Nonskid","TAPE & DISPENSERS",5.99,"ACTIVE"]
["040725","Highland 6200 Inv Perm Mend 3/4x36 Yds","TAPE & DISPENSERS",2.69,"ACTIVE"]
["040599","Highland 5910 Transp 1\" Core 1/2\"x36 Yds","TAPE & DISPENSERS",1.49,"ACTIVE"]
["042108","Scotch 234 Gen Prpse Masking 1\"x60 Yds","TAPE & DISPENSERS",9.67,"ACTIVE"]
["040596","Highland Masking Tape 2600 2\"x 60 Yd Rl","TAPE & DISPENSERS",6.49,"ACTIVE"]
["040536","Scotch 600 Transp Tape 1\"Core 3/4\"x36 Yd","TAPE & DISPENSERS",3.27,"ACTIVE"]
["040584","Highland Maskng Tape 2600 1/2''x 60 Yd Rl","TAPE & DISPENSERS",1.99,"ACTIVE"]
["1354240","Sch Sm Transparent Tape 3/4\"x36yd Pk/12","TAPE & DISPENSERS",15.49,"ACTIVE"]
["056307","Scotch Clear Box 1.89\"x54.7 Yds","TAPE & DISPENSERS",2.79,"ACTIVE"]
["1354242","Sch Sm Invisible Tape 3/4\"x36yd Pk/12","TAPE & DISPENSERS",18.690000000000001,"ACTIVE"]
["042105","Scotch 234 Gen Prpse Masking 3/4\"x60 Yds","TAPE & DISPENSERS",10.49,"ACTIVE"]
["040575","Scotch 845 Book Tape 2\"x 15 Yds","TAPE & DISPENSERS",9.89,"ACTIVE"]
["040722","Highland 6200 Inv Perm Mend 1/2x36 Yds","TAPE & DISPENSERS",1.89,"ACTIVE"]
["040488","Scotch 600 Transp Tape 1/2\"x450\" w/Disp","TAPE & DISPENSERS",1.89,"ACTIVE"]
["040533","Scotch 600 Transp Tape 1\"Core 1/2\"x36 Yd","TAPE & DISPENSERS",3.19,"ACTIVE"]
["042114","Scotch 234 Gen Prpse Masking 2\"x60 Yds","TAPE & DISPENSERS",23.89,"ACTIVE"]
["042102","Scotch 234 Gen Prpse Masking 1/2\"x60 Yds","TAPE & DISPENSERS",7.89,"ACTIVE"]
["040593","Highland Masking Tape 2600 1.5\"x 60 Yd Rl","TAPE & DISPENSERS",5.09,"ACTIVE"]
["1369041","Scotch 810 Magic Tape 3/4\"x1296\" Pk/6","TAPE & DISPENSERS",26.79,"ACTIVE"]
["1354241","Sch Sm Invisible Tape 1/2''x36yd  Pk/12","TAPE & DISPENSERS",15.49,"ACTIVE"]
["1369042","Scotch 810 Magic Tape 1/2\"x1296\" Pk/2","TAPE & DISPENSERS",7.09,"ACTIVE"]
["040578","Scotch 845 Book Tape 3\"x 15 Yds","TAPE & DISPENSERS",14.89,"ACTIVE"]
["1369035","Scotch 810 Magic Tape 3/4\"x300\" Pk/3","TAPE & DISPENSERS",5.99,"ACTIVE"]
["078588","Scotch C-60 Two Tone Tape Dispenser-Blk","TAPE & DISPENSERS",5.19,"ACTIVE"]
["1372484","Fold and Go Trampoline","TRAMPOLINES",150.29,"ACTIVE"]
["1539490","Mr. Sketch Scented Wash Mkrs Chisel St/14","WASHABLE MARKERS",17.59,"ACTIVE"]
["059178","Vis-à-Vis Wet Erase Marker Fine St/4","WET ERASE MARKERS",7.89,"ACTIVE"]
["1004744","Vis-à-Vis Wet Erase Marker Fine St/8","WET ERASE MARKERS",15.29,"ACTIVE"]
["079887","Vis-à-Vis Wet Erase Mkr Fine Black Pk/12","WET ERASE MARKERS",22.39,"ACTIVE"]
["079889","Vis-à-Vis Wet Erase Mkr Fine Blue Pk/12","WET ERASE MARKERS",22.39,"ACTIVE"]
["079888","Vis-à-Vis Wet Erase Mkr Fine Red Pk/12","WET ERASE MARKERS",22.39,"ACTIVE"]
["085843","Wiggle Eyes Round Asst Size Blk Pk/100","WIGGLE EYES",3.09,"ACTIVE"]
["085958","Craft Sticks Economy Natural Pk/1000","WOOD CRAFTS",7.99,"ACTIVE"]
[]
[]
[]
[]
[null,"Market Expo 2 -IN-1 Dual Ended 16 Colors Set of 8"]